Workbook

Sheet Final Results
A1: Pursuit Style Race Start Times | G1: Only edit/change entries in yellow shaded cells--updates are automatic!
G2: Click the button 'Sort Boats by Rating' to get the ordered boat starting times
A5: Wind speed | D5: Wind Spinnaker Adjustment | G5: race length (miles) | I5: start time of slowest boat
A6: 12 | B6: mph | D6: 9 | E6: sec/mile | G6: 9.8 | I6: 13:00:00
A7: If no spinnaker adjustment is desired, enter value greater than 26
A9: Boat name | B9: Fleet | C9: Elapsed Time | D9: Rating | E9: Pole Adj | F9: NS Adjustment Enter 1 for no spinnaker | G9: Actual Rating | H9: Differential Time (seconds) | I9: D Time (Minutes) | J9: Min | K9: Seconds | L9: Specific Boat Start Time
A10: H2O Sprite | B10: 1 | C10: 1:42:51 | D10: 120 | G10: 120 | H10: 323.4 | I10: 5.39 | J10: 5 | K10: 23.4 | L10: 13:05:23.400
A11: 1 Lucky Dog | B11: 1 | C11: 2:02:59 | D11: 82 | G11: 82 | H11: 695.8 | I11: 11.59666667 | J11: 11 | K11: 35.8 | L11: 13:11:35.800
A12: SV Galactica | B12: 1 | C12: 2:20:01 | D12: 144 | G12: 144 | H12: 88.2 | I12: 1.47 | J12: 1 | K12: 28.2 | L12: 13:01:28.200
A13: Sanctuary | B13: 1 | C13: 2:25:02 | D13: 138 | F13: 1 | G13: 147 | H13: 58.8 | I13: 0.98 | J13: 0 | K13: 58.8 | L13: 13:00:58.800
A14: Dream Retriever | B14: 1 | C14: 3:02:29 | D14: 144 | F14: 1 | G14: 153 | H14: 0 | I14: 0 | J14: 0 | K14: 0 | L14: 13:00:00
A15: Nauti Cat | B15: 1 | C15: 3:03:10 | D15: 118 | F15: 1 | G15: 127 | H15: 254.8 | I15: 4.246666667 | J15: 4 | K15: 14.8 | L15: 13:04:14.800
A16: Boat name | B16: 1 | D16: 40 | G16: 40 | H16: 1107.4 | I16: 18.45666667 | J16: 18 | K16: 27.4 | L16: 13:18:27.400
A17: Boat name | B17: 1 | D17: 20 | G17: 20 | H17: 1303.4 | I17: 21.72333333 | J17: 21 | K17: 43.4 | L17: 13:21:43.400
A18: Boat name | B18: 1 | D18: 20 | G18: 20 | H18: 1303.4 | I18: 21.72333333 | J18: 21 | K18: 43.4 | L18: 13:21:43.400
A19: Hushgully | B19: 1 | E19: -3 | F19: 1 | G19: 12 | H19: 1381.8 | I19: 23.03 | J19: 23 | K19: 1.8 | L19: 13:23:01.800
A20: Lake Shark | B20: 1 | G20: 0 | H20: 0 | I20: 0 | J20: 0 | K20: 0 | L20: 13:00:00
A21: Endurance | B21: 1 | G21: 0 | H21: 1499.4 | I21: 24.99 | J21: 24 | K21: 59.4 | L21: 13:24:59.400
A22: Blew J | B22: 1 | E22: -3 | G22: 0 | H22: 1499.4 | I22: 24.99 | J22: 24 | K22: 59.4 | L22: 13:24:59.400
A23: Sonshine | B23: 1 | G23: 0 | H23: 1499.4 | I23: 24.99 | J23: 24 | K23: 59.4 | L23: 13:24:59.400
A24: MaKani Nu | B24: 1 | G24: 0 | H24: 1499.4 | I24: 24.99 | J24: 24 | K24: 59.4 | L24: 13:24:59.400
A25: Phoenix | B25: 1 | G25: 0 | H25: 1499.4 | I25: 24.99 | J25: 24 | K25: 59.4 | L25: 13:24:59.400
A26: McPuff | B26: 1 | G26: 0 | H26: 1499.4 | I26: 24.99 | J26: 24 | K26: 59.4 | L26: 13:24:59.400
A27: Irish Joy | B27: 1 | G27: 0 | H27: 1499.4 | I27: 24.99 | J27: 24 | K27: 59.4 | L27: 13:24:59.400
A28: Piranha | B28: 1 | G28: 0 | H28: 1499.4 | I28: 24.99 | J28: 24 | K28: 59.4 | L28: 13:24:59.400
A29: Split Second | B29: 1 | G29: 0 | H29: 1499.4 | I29: 24.99 | J29: 24 | K29: 59.4 | L29: 13:24:59.400

Sheet WorkingSheet
A1: Pursuit Style Race Start Times | G1: Only edit/change entries in yellow shaded cells--updates are automatic!
G2: Click the button 'Sort Boats by Rating' to get the ordered boat starting times
A5: Wind speed | D5: Wind Spinnaker Adjustment | G5: race length (miles) | I5: start time of slowest boat
A6: 12 | B6: mph | D6: =IF(A6<6,15,IF(A6<11,12,IF(A6<16,9,IF(A6<21,6,(IF(A6<26,3,0)))))) -> 9 | E6: sec/mile | G6: =4.9*2 -> 9.8 | I6: 13:00:00
A7: If no spinnaker adjustment is desired, enter value greater than 26
A9: Boat name | B9: Fleet | C9: Elapsed Time | D9: Rating | E9: Pole Adj | F9: NS Adjustment Enter 1 for no spinnaker | G9: Actual Rating | H9: Differential Time (seconds) | I9: D Time (Minutes) | J9: Min | K9: Seconds | L9: Specific Boat Start Time
A10: Dream Retriever | B10: 1 | C10: 3:02:29 | D10: 144 | F10: 1 | G10: =IF(F10=1,D10-E10+D$6,D10) -> 153 | H10: =(G$10-G10)*G$6 -> 0 | I10: =H10/60 -> 0 | J10: =INT(H10/60) -> 0 | K10: =(H10/60-J10)*60 -> 0 | L10: =I$6+I10/(60*24) -> 13:00:00
A11: Sanctuary | B11: 1 | C11: 2:25:02 | D11: 138 | F11: 1 | G11: =IF(F11=1,D11-E11+D$6,D11) -> 147 | H11: =(G$10-G11)*G$6 -> 58.8 | I11: =H11/60 -> 0.98 | J11: =INT(H11/60) -> 0 | K11: =(H11/60-J11)*60 -> 58.8 | L11: =I$6+I11/(60*24) -> 13:00:58.800
A12: SV Galactica | B12: 1 | C12: 2:20:01 | D12: 144 | G12: =IF(F12=1,D12-E12+D$6,D12) -> 144 | H12: =(G$10-G12)*G$6 -> 88.2 | I12: =H12/60 -> 1.47 | J12: =INT(H12/60) -> 1 | K12: =(H12/60-J12)*60 -> 28.2 | L12: =I$6+I12/(60*24) -> 13:01:28.200
A13: Nauti Cat | B13: 1 | C13: 3:03:10 | D13: 118 | F13: 1 | G13: =IF(F13=1,D13-E13+D$6,D13) -> 127 | H13: =(G$10-G13)*G$6 -> 254.8 | I13: =H13/60 -> 4.246666667 | J13: =INT(H13/60) -> 4 | K13: =(H13/60-J13)*60 -> 14.8 | L13: =I$6+I13/(60*24) -> 13:04:14.800
A14: H2O Sprite | B14: 1 | C14: 1:42:51 | D14: 120 | G14: =IF(F14=1,D14-E14+D$6,D14) -> 120 | H14: =(G$10-G14)*G$6 -> 323.4 | I14: =H14/60 -> 5.39 | J14: =INT(H14/60) -> 5 | K14: =(H14/60-J14)*60 -> 23.4 | L14: =I$6+I14/(60*24) -> 13:05:23.400
A15: 1 Lucky Dog | B15: 1 | C15: 2:02:59 | D15: 82 | G15: =IF(F15=1,D15-E15+D$6,D15) -> 82 | H15: =(G$10-G15)*G$6 -> 695.8 | I15: =H15/60 -> 11.59666667 | J15: =INT(H15/60) -> 11 | K15: =(H15/60-J15)*60 -> 35.8 | L15: =I$6+I15/(60*24) -> 13:11:35.800
A16: Boat name | B16: 1 | D16: 40 | G16: =IF(F16=1,D16-E16+D$6,D16) -> 40 | H16: =(G$10-G16)*G$6 -> 1107.4 | I16: =H16/60 -> 18.45666667 | J16: =INT(H16/60) -> 18 | K16: =(H16/60-J16)*60 -> 27.4 | L16: =I$6+I16/(60*24) -> 13:18:27.400
A17: Boat name | B17: 1 | D17: 20 | G17: =IF(F17=1,D17-E17+D$6,D17) -> 20 | H17: =(G$10-G17)*G$6 -> 1303.4 | I17: =H17/60 -> 21.72333333 | J17: =INT(H17/60) -> 21 | K17: =(H17/60-J17)*60 -> 43.4 | L17: =I$6+I17/(60*24) -> 13:21:43.400
A18: Boat name | B18: 1 | D18: 20 | G18: =IF(F18=1,D18-E18+D$6,D18) -> 20 | H18: =(G$10-G18)*G$6 -> 1303.4 | I18: =H18/60 -> 21.72333333 | J18: =INT(H18/60) -> 21 | K18: =(H18/60-J18)*60 -> 43.4 | L18: =I$6+I18/(60*24) -> 13:21:43.400
A19: Hushgully | B19: 1 | E19: -3 | F19: 1 | G19: =IF(F19=1,D19-E19+D$6,D19) -> 12 | H19: =(G$10-G19)*G$6 -> 1381.8 | I19: =H19/60 -> 23.03 | J19: =INT(H19/60) -> 23 | K19: =(H19/60-J19)*60 -> 1.8 | L19: =I$6+I19/(60*24) -> 13:23:01.800
A20: Lake Shark | B20: 1 | G20: =IF(F20=1,D20-E20+D$6,D20) -> 0 | H20: 0 | I20: 0 | J20: 0 | K20: 0 | L20: =I$6+I20 -> 13:00:00
A21: Endurance | B21: 1 | G21: =IF(F21=1,D21-E21+D$6,D21) -> 0 | H21: =(G$10-G21)*G$6 -> 1499.4 | I21: =H21/60 -> 24.99 | J21: =INT(H21/60) -> 24 | K21: =(H21/60-J21)*60 -> 59.4 | L21: =I$6+I21/(60*24) -> 13:24:59.400
A22: Blew J | B22: 1 | E22: -3 | G22: =IF(F22=1,D22-E22+D$6,D22) -> 0 | H22: =(G$10-G22)*G$6 -> 1499.4 | I22: =H22/60 -> 24.99 | J22: =INT(H22/60) -> 24 | K22: =(H22/60-J22)*60 -> 59.4 | L22: =I$6+I22/(60*24) -> 13:24:59.400
A23: Sonshine | B23: 1 | G23: =IF(F23=1,D23-E23+D$6,D23) -> 0 | H23: =(G$10-G23)*G$6 -> 1499.4 | I23: =H23/60 -> 24.99 | J23: =INT(H23/60) -> 24 | K23: =(H23/60-J23)*60 -> 59.4 | L23: =I$6+I23/(60*24) -> 13:24:59.400
A24: MaKani Nu | B24: 1 | G24: =IF(F24=1,D24-E24+D$6,D24) -> 0 | H24: =(G$10-G24)*G$6 -> 1499.4 | I24: =H24/60 -> 24.99 | J24: =INT(H24/60) -> 24 | K24: =(H24/60-J24)*60 -> 59.4 | L24: =I$6+I24/(60*24) -> 13:24:59.400
A25: Phoenix | B25: 1 | G25: =IF(F25=1,D25-E25+D$6,D25) -> 0 | H25: =(G$10-G25)*G$6 -> 1499.4 | I25: =H25/60 -> 24.99 | J25: =INT(H25/60) -> 24 | K25: =(H25/60-J25)*60 -> 59.4 | L25: =I$6+I25/(60*24) -> 13:24:59.400
A26: McPuff | B26: 1 | G26: =IF(F26=1,D26-E26+D$6,D26) -> 0 | H26: =(G$10-G26)*G$6 -> 1499.4 | I26: =H26/60 -> 24.99 | J26: =INT(H26/60) -> 24 | K26: =(H26/60-J26)*60 -> 59.4 | L26: =I$6+I26/(60*24) -> 13:24:59.400
A27: Irish Joy | B27: 1 | G27: =IF(F27=1,D27-E27+D$6,D27) -> 0 | H27: =(G$10-G27)*G$6 -> 1499.4 | I27: =H27/60 -> 24.99 | J27: =INT(H27/60) -> 24 | K27: =(H27/60-J27)*60 -> 59.4 | L27: =I$6+I27/(60*24) -> 13:24:59.400
A28: Piranha | B28: 1 | G28: =IF(F28=1,D28-E28+D$6,D28) -> 0 | H28: =(G$10-G28)*G$6 -> 1499.4 | I28: =H28/60 -> 24.99 | J28: =INT(H28/60) -> 24 | K28: =(H28/60-J28)*60 -> 59.4 | L28: =I$6+I28/(60*24) -> 13:24:59.400
A29: Split Second | B29: 1 | G29: =IF(F29=1,D29-E29+D$6,D29) -> 0 | H29: =(G$10-G29)*G$6 -> 1499.4 | I29: =H29/60 -> 24.99 | J29: =INT(H29/60) -> 24 | K29: =(H29/60-J29)*60 -> 59.4 | L29: =I$6+I29/(60*24) -> 13:24:59.400

Sheet BoatRatingSheet
A9: Boat name | B9: Fleet | C9: Finish Time | D9: Rating | E9: Pole Adj | F9: NS Adjustment Enter 1 for no spinnaker | G9: Actual Rating
A10: Lake Shark | B10: 1 | D10: 241 | G10: =IF(F10=1,D10-E10+D$6,D10) -> 241
A11: Endurance | B11: 1 | D11: 189 | G11: =IF(F11=1,D11-E11+D$6,D11) -> 189
A12: Hushgully | B12: 1 | D12: 147 | E12: -3 | F12: 1 | G12: =IF(F12=1,D12-E12+D$6,D12) -> 150
A13: SV Galactica | B13: 1 | D13: 144 | F13: 1 | G13: =IF(F13=1,D13-E13+D$6,D13) -> 144
A14: Blew J | B14: 1 | D14: 147 | E14: -3 | G14: =IF(F14=1,D14-E14+D$6,D14) -> 147
A15: Sonshine | B15: 1 | D15: 147 | G15: =IF(F15=1,D15-E15+D$6,D15) -> 147
A16: Sanctuary | B16: 1 | D16: 147 | G16: =IF(F16=1,D16-E16+D$6,D16) -> 147
A17: MaKani Nu | B17: 1 | D17: 138 | G17: =IF(F17=1,D17-E17+D$6,D17) -> 138
A18: H2O Sprite | B18: 1 | D18: 120 | G18: =IF(F18=1,D18-E18+D$6,D18) -> 120
A19: Phoenix | B19: 1 | D19: 108 | G19: =IF(F19=1,D19-E19+D$6,D19) -> 108
A20: McPuff | B20: 1 | D20: 96 | G20: =IF(F20=1,D20-E20+D$6,D20) -> 96
A21: Irish Joy | B21: 1 | D21: 96 | G21: =IF(F21=1,D21-E21+D$6,D21) -> 96
A22: Piranha | B22: 1 | D22: 87 | G22: =IF(F22=1,D22-E22+D$6,D22) -> 87
A23: 1 Lucky Dog | B23: 1 | D23: 82 | G23: =IF(F23=1,D23-E23+D$6,D23) -> 82
A24: Split Second | B24: 1 | D24: 81 | G24: =IF(F24=1,D24-E24+D$6,D24) -> 81
A25: Boat name | B25: 1 | D25: 60 | F25: 1 | G25: =IF(F25=1,D25-E25+D$6,D25) -> 60
A26: Boat name | B26: 1 | D26: 45 | G26: =IF(F26=1,D26-E26+D$6,D26) -> 45
A27: Boat name | B27: 1 | D27: 40 | G27: =IF(F27=1,D27-E27+D$6,D27) -> 40
A28: Boat name | B28: 1 | D28: 20 | G28: =IF(F28=1,D28-E28+D$6,D28) -> 20
A29: Boat name | B29: 1 | D29: 20 | G29: =IF(F29=1,D29-E29+D$6,D29) -> 20
